[Event "*** Titled Tuesday 3|2 Blitz"]
[Site "Chess.com"]
[Date "2015.09.01"]
[Round "6"]
[White "manubibi"]
[Black "Mazetovic"]
[Result "1-0"]
[WhiteElo "2430"]
[BlackElo "2392"]
[TimeControl "180+2"]
[EndTime "12:16:19 PDT"]
[Termination "manubibi won by resignation"]

1. e4 {[%clk 0:03:01.9]} 1... c5 {[%clk 0:02:55.2]} 2. Nf3 {[%clk 0:02:59.2]}
2... Nc6 {[%clk 0:02:55.7]} 3. Bb5 {[%clk 0:02:59.7]} 3... d6 {[%clk 0:02:49.7]}
4. Bxc6+ {[%clk 0:02:49.9]} 4... bxc6 {[%clk 0:02:45.4]} 5. e5 {[%clk
0:02:41.6]} 5... Bg4 {[%clk 0:02:41.1]} 6. h3 {[%clk 0:02:39.4]} 6... Bh5 {[%clk
0:02:41.2]} 7. O-O {[%clk 0:02:36.7]} 7... d5 {[%clk 0:02:23.1]} 8. e6 {[%clk
0:02:03.9]} 8... fxe6 {[%clk 0:02:11.5]} 9. Re1 {[%clk 0:02:05.1]} 9... Nf6
{[%clk 0:02:05.9]} 10. g4 {[%clk 0:01:56.5]} 10... Bf7 {[%clk 0:02:05.2]} 11.
Ng5 {[%clk 0:01:56.4]} 11... h5 {[%clk 0:02:03.9]} 12. Nxf7 {[%clk 0:01:56.3]}
12... Kxf7 {[%clk 0:02:03.9]} 13. g5 {[%clk 0:01:57.9]} 13... Ne4 {[%clk
0:01:57.8]} 14. d3 {[%clk 0:01:58.2]} 14... Nd6 {[%clk 0:01:56.9]} 15. Nd2
{[%clk 0:01:54.9]} 15... g6 {[%clk 0:01:47.5]} 16. Nf3 {[%clk 0:01:54.8]} 16...
Bg7 {[%clk 0:01:47.9]} 17. Be3 {[%clk 0:01:44.2]} 17... Qa5 {[%clk 0:01:31.1]}
18. Bd2 {[%clk 0:01:41.8]} 18... Qa4 {[%clk 0:01:27.6]} 19. b3 {[%clk
0:01:36.2]} 19... Qa6 {[%clk 0:01:23.8]} 20. Ne5+ {[%clk 0:01:34.9]} 20... Bxe5
{[%clk 0:01:23.6]} 21. Rxe5 {[%clk 0:01:36.8]} 21... Nf5 {[%clk 0:01:23.6]} 22.
Bc3 {[%clk 0:01:34.9]} 22... Rhd8 {[%clk 0:01:18.7]} 23. Qe2 {[%clk 0:01:35.4]}
23... d4 {[%clk 0:01:03.2]} 24. Bd2 {[%clk 0:01:34.2]} 24... Rd5 {[%clk
0:00:57]} 25. Rxe6 {[%clk 0:01:32.6]} 25... Qc8 {[%clk 0:00:56.3]} 26. Re1
{[%clk 0:01:32.8]} 26... Qd7 {[%clk 0:00:56.8]} 27. Qe4 {[%clk 0:01:23.1]} 27...
Rf8 {[%clk 0:00:47.6]} 28. Bf4 {[%clk 0:01:17.2]} 28... Kg7 {[%clk 0:00:43.3]}
29. a4 {[%clk 0:00:59]} 29... Rf7 {[%clk 0:00:42]} 30. Kh1 {[%clk 0:00:47]}
30... Kh7 {[%clk 0:00:42.3]} 31. Qe2 {[%clk 0:00:45.2]} 31... Ng7 {[%clk
0:00:35.4]} 32. Bg3 {[%clk 0:00:21.3]} 32... Nxe6 {[%clk 0:00:32.9]} 33. Qxe6
{[%clk 0:00:23.2]} 33... Qxe6 {[%clk 0:00:33.9]} 34. Rxe6 {[%clk 0:00:25.1]}
34... Rxg5 {[%clk 0:00:33.2]} 35. Rxc6 {[%clk 0:00:25.7]} 35... h4 {[%clk
0:00:27.9]} 36. Bxh4 {[%clk 0:00:25.8]} 36... Rh5 {[%clk 0:00:28.9]} 37. Bg3
{[%clk 0:00:27.3]} 37... Rxh3+ {[%clk 0:00:29.5]} 38. Kg2 {[%clk 0:00:28.9]}
38... Rh5 {[%clk 0:00:28.6]} 39. Rc7 {[%clk 0:00:30.3]} 39... Rhf5 {[%clk
0:00:23.9]} 40. Rxa7 {[%clk 0:00:30.3]} 40... e6 {[%clk 0:00:22.5]} 41. Ra6
{[%clk 0:00:30.5]} 41... e5 {[%clk 0:00:14.1]} 42. Rc6 {[%clk 0:00:30]} 42...
Re7 {[%clk 0:00:08.5]} 43. Rxc5 {[%clk 0:00:15.9]} 43... e4 {[%clk 0:00:09.5]}
44. Rc4 {[%clk 0:00:07.4]} 44... e3 {[%clk 0:00:09.9]} 45. fxe3 {[%clk
0:00:07.3]} 45... dxe3 {[%clk 0:00:10.9]} 46. Re4 {[%clk 0:00:08.9]} 46... Rxe4
{[%clk 0:00:08.8]} 47. dxe4 {[%clk 0:00:10.8]} 47... Rc5 {[%clk 0:00:09.1]} 48.
c4 {[%clk 0:00:11.9]} 48... Rg5 {[%clk 0:00:08.9]} 49. Kf3 {[%clk 0:00:11.9]}
49... e2 {[%clk 0:00:10.2]} 50. Bf2 {[%clk 0:00:11.2]} 50... Rh5 {[%clk
0:00:06.4]} 51. Kxe2 {[%clk 0:00:12.1]} 51... Rh3 {[%clk 0:00:06.6]} 52. Be3
{[%clk 0:00:13.2]} 52... Kg7 {[%clk 0:00:07.2]} 53. a5 {[%clk 0:00:14.5]} 53...
Kf6 {[%clk 0:00:08.4]} 54. a6 {[%clk 0:00:15.8]} 54... Ke5 {[%clk 0:00:09.9]}
55. a7 {[%clk 0:00:15.9]} 55... Rh8 {[%clk 0:00:09.9]} 56. Kd3 {[%clk
0:00:14.3]} 56... Kd6 {[%clk 0:00:09.8]} 57. b4 {[%clk 0:00:14.7]} 57... Kc6
{[%clk 0:00:11.1]} 58. b5+ {[%clk 0:00:15.7]} 58... Kb7 {[%clk 0:00:12.2]} 59.
e5 {[%clk 0:00:16.8]} 59... g5 {[%clk 0:00:09.8]} 60. Bxg5 {[%clk 0:00:15.1]}
60... Kxa7 {[%clk 0:00:09.6]} 61. c5 {[%clk 0:00:16.4]} 61... Rh1 {[%clk
0:00:06.8]} 62. Kc4 {[%clk 0:00:15.5]} 62... Kb7 {[%clk 0:00:07.9]} 63. Be3
{[%clk 0:00:14.4]} 63... Rd1 {[%clk 0:00:07]} 64. Bd4 {[%clk 0:00:14.5]} 64...
Kc7 {[%clk 0:00:06.7]} 65. Kd5 {[%clk 0:00:15.4]} 65... Kd7 {[%clk 0:00:07.8]}
66. e6+ {[%clk 0:00:16.5]} 66... Ke7 {[%clk 0:00:09.1]} 67. b6 {[%clk
0:00:17.3]} 67... Rb1 {[%clk 0:00:09.7]} 68. c6 {[%clk 0:00:18.1]} 1-0

[Event "*** Titled Tuesday 3|2 Blitz"]
[Site "Chess.com"]
[Date "2015.09.01"]
[Round "6"]
[White "tac49"]
[Black "Ar4uha"]
[Result "1-0"]
[WhiteElo "2432"]
[BlackElo "2385"]
[TimeControl "180+2"]
[EndTime "12:16:48 PDT"]
[Termination "tac49 won by resignation"]

1. e4 {[%clk 0:02:59.1]} 1... d5 {[%clk 0:02:58.8]} 2. exd5 {[%clk 0:02:58.5]}
2... Nf6 {[%clk 0:03:00.4]} 3. d4 {[%clk 0:02:58.2]} 3... Nxd5 {[%clk
0:03:01.8]} 4. c4 {[%clk 0:02:57.7]} 4... Nb6 {[%clk 0:03:03.2]} 5. Nf3 {[%clk
0:02:58.1]} 5... g6 {[%clk 0:03:04.3]} 6. Nc3 {[%clk 0:02:57.6]} 6... Bg7 {[%clk
0:03:05.7]} 7. Be3 {[%clk 0:02:58.6]} 7... O-O {[%clk 0:03:04.1]} 8. Rc1 {[%clk
0:02:59.7]} 8... Bg4 {[%clk 0:03:01.8]} 9. h3 {[%clk 0:02:55.4]} 9... Bxf3
{[%clk 0:03:02.1]} 10. Qxf3 {[%clk 0:02:57.3]} 10... Nc6 {[%clk 0:03:00]} 11. c5
{[%clk 0:02:48.7]} 11... Nd7 {[%clk 0:02:54.1]} 12. Rd1 {[%clk 0:02:47]} 12...
e5 {[%clk 0:02:54.9]} 13. dxe5 {[%clk 0:02:26]} 13... Ndxe5 {[%clk 0:02:54.1]}
14. Qg3 {[%clk 0:02:21.2]} 14... Qe8 {[%clk 0:02:39]} 15. Be2 {[%clk 0:02:21.3]}
15... Qe6 {[%clk 0:02:30.6]} 16. O-O {[%clk 0:02:20.8]} 16... Nc4 {[%clk
0:02:31.1]} 17. Bxc4 {[%clk 0:02:20.2]} 17... Qxc4 {[%clk 0:02:33]} 18. Qxc7
{[%clk 0:02:20.7]} 18... Qb4 {[%clk 0:02:28.8]} 19. Nd5 {[%clk 0:01:48.4]} 19...
Qxb2 {[%clk 0:02:25.7]} 20. Rd2 {[%clk 0:01:47.3]} 20... Qb5 {[%clk 0:02:18.5]}
21. a4 {[%clk 0:01:42.8]} 21... Qb3 {[%clk 0:02:04.5]} 22. Qf4 {[%clk
0:01:24.8]} 22... Rad8 {[%clk 0:01:14.8]} 23. Nf6+ {[%clk 0:01:21.8]} 23... Kh8
{[%clk 0:01:10.4]} 24. Rd6 {[%clk 0:01:07.8]} 24... Rxd6 {[%clk 0:01:04.9]} 25.
cxd6 {[%clk 0:01:08.3]} 25... Qe6 {[%clk 0:01:05]} 26. Ne4 {[%clk 0:01:00.7]}
26... Be5 {[%clk 0:01:04.9]} 27. Qh6 {[%clk 0:00:56]} 27... Bg7 {[%clk
0:01:02.9]} 28. Ng5 {[%clk 0:00:48.7]} 28... Bxh6 {[%clk 0:00:59.6]} 29. Nxe6
{[%clk 0:00:50]} 29... fxe6 {[%clk 0:00:56.6]} 30. Bxh6 {[%clk 0:00:50.8]} 30...
Rd8 {[%clk 0:00:58.2]} 31. Rd1 {[%clk 0:00:49.2]} 31... Rd7 {[%clk 0:00:56.4]}
32. Rd3 {[%clk 0:00:47.5]} 32... Kg8 {[%clk 0:00:55.7]} 33. Rf3 {[%clk
0:00:47.6]} 33... Rd8 {[%clk 0:00:44.1]} 34. Rf6 {[%clk 0:00:44.5]} 34... Nd4
{[%clk 0:00:34.6]} 35. d7 {[%clk 0:00:42.8]} 35... Nc6 {[%clk 0:00:27.3]} 36. a5
{[%clk 0:00:42.2]} 36... Ne5 {[%clk 0:00:21.5]} 37. Rxe6 {[%clk 0:00:42.2]}
37... Nxd7 {[%clk 0:00:21.3]} 38. Rd6 {[%clk 0:00:43]} 38... Kf7 {[%clk
0:00:15]} 39. Bg5 {[%clk 0:00:43.5]} 39... Ke8 {[%clk 0:00:16.6]} 40. Re6+
{[%clk 0:00:38.9]} 40... Kf7 {[%clk 0:00:15]} 41. Rd6 {[%clk 0:00:33.3]} 41...
Ke8 {[%clk 0:00:16.3]} 42. Bxd8 {[%clk 0:00:34.2]} 42... Kxd8 {[%clk 0:00:18.2]}
43. f4 {[%clk 0:00:32.1]} 43... Ke7 {[%clk 0:00:19.4]} 44. Rd4 {[%clk
0:00:32.3]} 44... b6 {[%clk 0:00:20.7]} 45. axb6 {[%clk 0:00:32.4]} 45... axb6
{[%clk 0:00:22.6]} 46. Kf2 {[%clk 0:00:33.6]} 46... Nc5 {[%clk 0:00:24]} 47. Ke3
{[%clk 0:00:33.9]} 47... Ke6 {[%clk 0:00:25.3]} 48. Rb4 {[%clk 0:00:32.7]} 48...
Nd7 {[%clk 0:00:26.6]} 49. g4 {[%clk 0:00:32.5]} 49... Kd6 {[%clk 0:00:28.1]}
50. Kd4 {[%clk 0:00:30.3]} 50... Ke6 {[%clk 0:00:26.3]} 51. Rb5 {[%clk
0:00:29.2]} 51... Kd6 {[%clk 0:00:25.9]} 52. f5 {[%clk 0:00:30.1]} 52... gxf5
{[%clk 0:00:27.4]} 53. Rxf5 {[%clk 0:00:30.4]} 53... Ke7 {[%clk 0:00:29.3]} 54.
Rh5 {[%clk 0:00:29]} 54... Nf8 {[%clk 0:00:30.7]} 55. Ke5 {[%clk 0:00:27.5]}
55... Kf7 {[%clk 0:00:31.1]} 56. Rf5+ {[%clk 0:00:23.4]} 56... Ke7 {[%clk
0:00:31.9]} 57. Kf4 {[%clk 0:00:23.4]} 57... Ne6+ {[%clk 0:00:32.6]} 58. Kg3
{[%clk 0:00:22.3]} 58... Kd6 {[%clk 0:00:21.8]} 59. Rf7 {[%clk 0:00:14.1]} 59...
h6 {[%clk 0:00:23.3]} 60. Rf6 {[%clk 0:00:14.5]} 60... b5 {[%clk 0:00:25]} 61.
Rxh6 {[%clk 0:00:14.5]} 61... b4 {[%clk 0:00:26.5]} 62. Rh8 {[%clk 0:00:14.2]}
62... Kc7 {[%clk 0:00:27.8]} 63. Rh5 {[%clk 0:00:11.1]} 63... Kc6 {[%clk
0:00:28.6]} 64. Rf5 {[%clk 0:00:11.6]} 64... Nc5 {[%clk 0:00:30.3]} 65. Rf1
{[%clk 0:00:10]} 65... Ne4+ {[%clk 0:00:30.9]} 66. Kf4 {[%clk 0:00:09.9]} 66...
Nd2 {[%clk 0:00:32.6]} 67. Rc1+ {[%clk 0:00:10.5]} 67... Kb5 {[%clk 0:00:33.1]}
68. h4 {[%clk 0:00:10.8]} 68... b3 {[%clk 0:00:34.6]} 69. Rc8 {[%clk 0:00:10.9]}
69... Nc4 {[%clk 0:00:34.7]} 70. Rb8+ {[%clk 0:00:10.8]} 70... Nb6 {[%clk
0:00:36]} 71. Re8 {[%clk 0:00:09.9]} 71... Nd5+ {[%clk 0:00:36.1]} 72. Kf3
{[%clk 0:00:09.3]} 72... b2 {[%clk 0:00:31]} 73. Re1 {[%clk 0:00:10.1]} 73...
Nc3 {[%clk 0:00:32.1]} 74. h5 {[%clk 0:00:10.9]} 74... Kc4 {[%clk 0:00:33.4]}
75. h6 {[%clk 0:00:10.6]} 75... Na2 {[%clk 0:00:35.1]} 76. Rb1 {[%clk
0:00:09.8]} 76... Nc3 {[%clk 0:00:36.8]} 77. Rxb2 {[%clk 0:00:10]} 77... Nb5
{[%clk 0:00:38.7]} 78. Rxb5 {[%clk 0:00:10.5]} 78... Kxb5 {[%clk 0:00:40]} 79.
h7 {[%clk 0:00:12.4]} 79... Kc6 {[%clk 0:00:41.4]} 80. h8=Q {[%clk 0:00:14.3]}
80... Kd5 {[%clk 0:00:43.3]} 81. Qf6 {[%clk 0:00:15.1]} 1-0

[Event "*** Titled Tuesday 3|2 Blitz"]
[Site "Chess.com"]
[Date "2015.09.01"]
[Round "6"]
[White "E-Shaposhnikov"]
[Black "Boryboy"]
[Result "0-1"]
[WhiteElo "2418"]
[BlackElo "2502"]
[TimeControl "180+2"]
[EndTime "12:17:19 PDT"]
[Termination "Boryboy won on time"]

1. Nf3 {[%clk 0:02:36.8]} 1... d5 {[%clk 0:03:00.3]} 2. d4 {[%clk 0:02:37.4]}
2... Nf6 {[%clk 0:03:00.1]} 3. c4 {[%clk 0:02:38.9]} 3... e6 {[%clk 0:03:01.2]}
4. Nc3 {[%clk 0:02:39.8]} 4... Nbd7 {[%clk 0:03:02.4]} 5. g3 {[%clk 0:02:39.3]}
5... c6 {[%clk 0:02:57.4]} 6. Bg2 {[%clk 0:02:39]} 6... dxc4 {[%clk 0:02:55.8]}
7. Nd2 {[%clk 0:02:39.7]} 7... Nb6 {[%clk 0:02:51.7]} 8. e3 {[%clk 0:02:40.4]}
8... e5 {[%clk 0:02:46.1]} 9. dxe5 {[%clk 0:02:18.9]} 9... Ng4 {[%clk
0:02:46.8]} 10. Na4 {[%clk 0:01:51.5]} 10... Nxe5 {[%clk 0:02:41.8]} 11. O-O
{[%clk 0:01:51.8]} 11... Be7 {[%clk 0:02:39.4]} 12. Nxb6 {[%clk 0:01:45.6]}
12... axb6 {[%clk 0:02:40.6]} 13. f4 {[%clk 0:01:46.6]} 13... Nd3 {[%clk
0:02:41.8]} 14. Nxc4 {[%clk 0:01:47.7]} 14... Nxc1 {[%clk 0:02:43.1]} 15. Qxd8+
{[%clk 0:01:28.1]} 15... Kxd8 {[%clk 0:02:40.4]} 16. Nxb6 {[%clk 0:01:16.5]}
16... Rxa2 {[%clk 0:02:30.1]} 17. Rfxc1 {[%clk 0:01:16.2]} 17... Rxa1 {[%clk
0:02:29.6]} 18. Rxa1 {[%clk 0:01:18.1]} 18... Kc7 {[%clk 0:02:31]} 19. Nxc8
{[%clk 0:01:13.9]} 19... Rxc8 {[%clk 0:02:32.9]} 20. Kf2 {[%clk 0:01:12]} 20...
Bf6 {[%clk 0:02:29.9]} 21. Ra2 {[%clk 0:01:13.5]} 21... Rd8 {[%clk 0:02:29.4]}
22. Ke2 {[%clk 0:01:15]} 22... h6 {[%clk 0:02:22.4]} 23. Be4 {[%clk 0:01:15]}
23... Kb6 {[%clk 0:02:22.6]} 24. Ra3 {[%clk 0:01:13.7]} 24... Rd7 {[%clk
0:02:22.8]} 25. Bd3 {[%clk 0:01:13.1]} 25... Kc5 {[%clk 0:02:23.8]} 26. Ra2
{[%clk 0:01:04.2]} 26... b5 {[%clk 0:02:24.4]} 27. e4 {[%clk 0:01:02.2]} 27...
Bd4 {[%clk 0:02:24.9]} 28. e5 {[%clk 0:01:00.4]} 28... Re7 {[%clk 0:02:24.2]}
29. b3 {[%clk 0:00:49.3]} 29... f6 {[%clk 0:02:22.3]} 30. Rc2+ {[%clk
0:00:49.7]} 30... Kb6 {[%clk 0:02:23.5]} 31. Be4 {[%clk 0:00:48.6]} 31... c5
{[%clk 0:02:24]} 32. Ra2 {[%clk 0:00:38.9]} 32... fxe5 {[%clk 0:02:24.4]} 33. f5
{[%clk 0:00:40.4]} 33... Rd7 {[%clk 0:02:18.5]} 34. g4 {[%clk 0:00:33.7]} 34...
c4 {[%clk 0:02:17.4]} 35. bxc4 {[%clk 0:00:34.1]} 35... bxc4 {[%clk 0:02:19.3]}
36. h4 {[%clk 0:00:36]} 36... Kc5 {[%clk 0:02:06.7]} 37. g5 {[%clk 0:00:35.2]}
37... hxg5 {[%clk 0:02:07.7]} 38. hxg5 {[%clk 0:00:37.1]} 38... Bc3 {[%clk
0:02:05.3]} 39. Ra6 {[%clk 0:00:35.5]} 39... Rd2+ {[%clk 0:02:04.5]} 40. Ke3
{[%clk 0:00:35.6]} 40... Rh2 {[%clk 0:01:58.7]} 41. f6 {[%clk 0:00:32.1]} 41...
gxf6 {[%clk 0:01:55.9]} 42. gxf6 {[%clk 0:00:31.1]} 42... Bd2+ {[%clk
0:01:53.6]} 43. Kf3 {[%clk 0:00:28.6]} 43... Rh4 {[%clk 0:01:54.8]} 44. Bg6
{[%clk 0:00:19.6]} 44... Rf4+ {[%clk 0:01:54.2]} 45. Ke2 {[%clk 0:00:20.8]}
45... Bb4 {[%clk 0:01:53.3]} 46. f7 {[%clk 0:00:21]} 46... Kd4 {[%clk
0:01:54.7]} 47. Rb6 {[%clk 0:00:21]} 47... Bc5 {[%clk 0:01:55.8]} 48. Rb8 {[%clk
0:00:20.3]} 48... Rf6 {[%clk 0:01:54.9]} 49. Rd8+ {[%clk 0:00:21]} 49... Kc3
{[%clk 0:01:56.3]} 50. Bh5 {[%clk 0:00:18.6]} 50... Rf5 {[%clk 0:01:56.4]} 51.
Bg6 {[%clk 0:00:17.6]} 51... Rf2+ {[%clk 0:01:57.4]} 52. Ke1 {[%clk 0:00:18.6]}
52... Rf4 {[%clk 0:01:58.5]} 53. Rd5 {[%clk 0:00:18.6]} 53... Bb4 {[%clk
0:01:57.6]} 54. Ke2 {[%clk 0:00:20]} 54... Rf6 {[%clk 0:01:56.7]} 55. Bh5 {[%clk
0:00:18.8]} 55... Rf5 {[%clk 0:01:47.3]} 56. Bg6 {[%clk 0:00:17.5]} 56... Rg5
{[%clk 0:01:48.9]} 57. Be4 {[%clk 0:00:15.8]} 57... Rg4 {[%clk 0:01:44.3]} 58.
Ke3 {[%clk 0:00:12]} 58... Rf4 {[%clk 0:01:41]} 59. Bg6 {[%clk 0:00:11.8]} 59...
Rf6 {[%clk 0:01:41.9]} 60. Bh5 {[%clk 0:00:11.4]} 60... Rh6 {[%clk 0:01:27.7]}
61. Bg4 {[%clk 0:00:09.5]} 61... Rh7 {[%clk 0:01:26.4]} 62. Be6 {[%clk
0:00:09.9]} 62... Rh5 {[%clk 0:01:18.4]} 63. Rd8 {[%clk 0:00:09.9]} 63... Rh6
{[%clk 0:01:16]} 64. Bd5 {[%clk 0:00:09.1]} 64... Rf6 {[%clk 0:00:53.3]} 65. Rc8
{[%clk 0:00:09.6]} 65... Rf4 {[%clk 0:00:52.5]} 66. Rb8 {[%clk 0:00:05.8]} 66...
Bc5+ {[%clk 0:00:51.7]} 67. Ke2 {[%clk 0:00:06.7]} 67... Kd4 {[%clk 0:00:53]}
68. Be6 {[%clk 0:00:07.3]} 68... Kc3 {[%clk 0:00:51.2]} 69. Rc8 {[%clk
0:00:08.1]} 69... Kb4 {[%clk 0:00:45.1]} 70. Rb8+ {[%clk 0:00:09.1]} 70... Ka5
{[%clk 0:00:40.6]} 71. Rc8 {[%clk 0:00:08.6]} 71... Kb6 {[%clk 0:00:41.7]} 72.
Bd5 {[%clk 0:00:10.2]} 72... c3 {[%clk 0:00:40]} 73. Kd3 {[%clk 0:00:09.9]}
73... Rd4+ {[%clk 0:00:39.9]} 74. Kc2 {[%clk 0:00:09.9]} 74... Bb4 {[%clk
0:00:35.6]} 75. Be6 {[%clk 0:00:06.2]} 75... Rd2+ {[%clk 0:00:36.1]} 76. Kb1
{[%clk 0:00:06.6]} 76... Rb2+ {[%clk 0:00:37]} 77. Kc1 {[%clk 0:00:07.9]} 77...
Rf2 {[%clk 0:00:35.9]} 78. Rb8+ {[%clk 0:00:07.8]} 78... Kc5 {[%clk 0:00:35.8]}
79. Rc8+ {[%clk 0:00:09.1]} 79... Kd4 {[%clk 0:00:24.2]} 80. Rc4+ {[%clk
0:00:09.4]} 80... Kd3 {[%clk 0:00:25.8]} 0-1

[Event "*** Titled Tuesday 3|2 Blitz"]
[Site "Chess.com"]
[Date "2015.09.01"]
[Round "7"]
[White "Ar4uha"]
[Black "BIG_Pirate"]
[Result "0-1"]
[WhiteElo "2373"]
[BlackElo "2218"]
[TimeControl "180+2"]
[EndTime "12:20:28 PDT"]
[Termination "BIG_Pirate won by resignation"]

1. e4 {[%clk 0:02:59.6]} 1... d5 {[%clk 0:03:00.9]} 2. exd5 {[%clk 0:03:00.5]}
2... Qxd5 {[%clk 0:03:02.8]} 3. Nf3 {[%clk 0:03:02.4]} 3... Nf6 {[%clk
0:03:03.1]} 4. Be2 {[%clk 0:03:00.7]} 4... Nc6 {[%clk 0:02:59.5]} 5. O-O {[%clk
0:03:01.1]} 5... Bg4 {[%clk 0:03:00]} 6. d4 {[%clk 0:02:55.6]} 6... O-O-O {[%clk
0:02:59.8]} 7. c4 {[%clk 0:02:43.6]} 7... Qf5 {[%clk 0:03:00.7]} 8. d5 {[%clk
0:02:44.4]} 8... e6 {[%clk 0:02:32.5]} 9. Bd3 {[%clk 0:02:44.4]} 9... Qh5 {[%clk
0:02:31.9]} 10. dxc6 {[%clk 0:02:41.9]} 10... Bxf3 {[%clk 0:02:18.1]} 11. gxf3
{[%clk 0:02:39.9]} 11... Bd6 {[%clk 0:02:14.6]} 12. Re1 {[%clk 0:02:10]} 12...
Qh3 {[%clk 0:02:08.3]} 13. f4 {[%clk 0:02:10.6]} 13... Ng4 {[%clk 0:02:08.9]}
14. Qf3 {[%clk 0:02:11.9]} 14... Qxf3 {[%clk 0:02:08.5]} 0-1

[Event "*** Titled Tuesday 3|2 Blitz"]
[Site "Chess.com"]
[Date "2015.09.01"]
[Round "7"]
[White "Colombiano07"]
[Black "AnastasiaProtopopova"]
[Result "0-1"]
[WhiteElo "1964"]
[BlackElo "1817"]
[TimeControl "180+2"]
[EndTime "12:21:43 PDT"]
[Termination "AnastasiaProtopopova won by resignation"]

1. e4 {[%clk 0:03:01.9]} 1... e5 {[%clk 0:03:00.7]} 2. Nf3 {[%clk 0:03:02.5]}
2... Nc6 {[%clk 0:03:02.3]} 3. d4 {[%clk 0:03:02.8]} 3... exd4 {[%clk
0:03:03.1]} 4. c3 {[%clk 0:03:04.3]} 4... d5 {[%clk 0:03:02.5]} 5. exd5 {[%clk
0:02:20.6]} 5... Qxd5 {[%clk 0:02:55.3]} 6. cxd4 {[%clk 0:02:22.5]} 6... Bb4+
{[%clk 0:02:51]} 7. Nc3 {[%clk 0:02:23.1]} 7... Bg4 {[%clk 0:02:51.4]} 8. Be2
{[%clk 0:02:21.8]} 8... Bxf3 {[%clk 0:02:47.8]} 9. Bxf3 {[%clk 0:02:22.5]} 9...
Qc4 {[%clk 0:02:48.1]} 10. d5 {[%clk 0:02:20.5]} 10... O-O-O {[%clk 0:02:42.9]}
11. Bd2 {[%clk 0:02:17.6]} 11... Re8+ {[%clk 0:02:39.5]} 12. Be2 {[%clk
0:02:17.9]} 12... Nd4 {[%clk 0:02:39.6]} 13. Rc1 {[%clk 0:02:12.5]} 13... Bxc3
{[%clk 0:02:37.4]} 14. Rxc3 {[%clk 0:02:07]} 14... Rxe2+ {[%clk 0:02:30.2]} 15.
Kf1 {[%clk 0:02:07.7]} 15... Qa6 {[%clk 0:02:27]} 16. Kg1 {[%clk 0:01:50.9]}
16... Nf6 {[%clk 0:02:21.6]} 17. Be3 {[%clk 0:01:50.1]} 17... Nf5 {[%clk
0:02:11.4]} 18. Ra3 {[%clk 0:01:50.1]} 18... Nxe3 {[%clk 0:02:08.2]} 19. fxe3
{[%clk 0:01:47.9]} 19... Qc4 {[%clk 0:01:59.9]} 20. Rc3 {[%clk 0:01:48.2]} 20...
Qg4 {[%clk 0:01:59.3]} 21. Qf1 {[%clk 0:01:43.4]} 21... Rxb2 {[%clk 0:01:55.1]}
0-1

[Event "*** Titled Tuesday 3|2 Blitz"]
[Site "Chess.com"]
[Date "2015.09.01"]
[Round "7"]
[White "Moltini"]
[Black "Hafez_Bakr"]
[Result "1-0"]
[WhiteElo "2112"]
[BlackElo "1724"]
[TimeControl "180+2"]
[EndTime "12:21:57 PDT"]
[Termination "Moltini won by resignation"]

1. d4 {[%clk 0:03:01.9]} 1... Nf6 {[%clk 0:02:41.1]} 2. c4 {[%clk 0:03:02.1]}
2... e6 {[%clk 0:02:42.3]} 3. Nf3 {[%clk 0:03:02.8]} 3... b6 {[%clk 0:02:43.4]}
4. a3 {[%clk 0:03:03.6]} 4... Bb7 {[%clk 0:02:44.4]} 5. Nc3 {[%clk 0:03:05]}
5... Be7 {[%clk 0:02:45.2]} 6. g3 {[%clk 0:03:06.4]} 6... d5 {[%clk 0:02:46.2]}
7. Bg2 {[%clk 0:03:07.1]} 7... O-O {[%clk 0:02:46.2]} 8. Nd2 {[%clk 0:03:06.3]}
8... c6 {[%clk 0:02:46.3]} 9. O-O {[%clk 0:03:06.7]} 9... Nbd7 {[%clk
0:02:47.1]} 10. e4 {[%clk 0:03:08]} 10... dxe4 {[%clk 0:02:46.7]} 11. Ndxe4
{[%clk 0:03:09.2]} 11... Nxe4 {[%clk 0:02:44.9]} 12. Nxe4 {[%clk 0:03:10.2]}
12... c5 {[%clk 0:02:43.9]} 13. d5 {[%clk 0:03:08.9]} 13... exd5 {[%clk
0:02:44.1]} 14. cxd5 {[%clk 0:03:10.1]} 14... Ne5 {[%clk 0:02:42.9]} 15. d6
{[%clk 0:03:04.4]} 15... Nc6 {[%clk 0:02:25]} 16. dxe7 {[%clk 0:03:02.5]} 16...
Qxe7 {[%clk 0:02:25.5]} 17. Be3 {[%clk 0:03:00.1]} 17... Rfd8 {[%clk 0:02:26.9]}
18. Qc2 {[%clk 0:02:57.9]} 18... Nd4 {[%clk 0:02:26.6]} 19. Bxd4 {[%clk
0:02:59.1]} 19... Rxd4 {[%clk 0:02:26.5]} 20. Nc3 {[%clk 0:02:57.5]} 20... Bxg2
{[%clk 0:02:26.1]} 21. Kxg2 {[%clk 0:02:58.8]} 21... Rad8 {[%clk 0:02:25.9]} 22.
Rad1 {[%clk 0:02:59.5]} 22... Qb7+ {[%clk 0:02:22.7]} 23. Kg1 {[%clk 0:02:59.6]}
23... Qc6 {[%clk 0:02:22.5]} 24. Rxd4 {[%clk 0:02:51.8]} 24... cxd4 {[%clk
0:02:23]} 25. Rd1 {[%clk 0:02:52.8]} 25... Rd7 {[%clk 0:02:18.5]} 26. Qd3 {[%clk
0:02:51.4]} 26... g6 {[%clk 0:02:16.1]} 27. Ne2 {[%clk 0:02:49]} 27... Qc5
{[%clk 0:02:04]} 28. Nxd4 {[%clk 0:02:46.5]} 28... a6 {[%clk 0:02:01.6]} 29. Qe3
{[%clk 0:02:47.4]} 29... Rd5 {[%clk 0:01:58.4]} 30. Rd2 {[%clk 0:02:44.7]} 30...
Qc1+ {[%clk 0:01:55.8]} 31. Kg2 {[%clk 0:02:44]} 31... Rc5 {[%clk 0:01:54.2]}
32. Nb3 {[%clk 0:02:39.1]} 1-0

[Event "*** Titled Tuesday 3|2 Blitz"]
[Site "Chess.com"]
[Date "2015.09.01"]
[Round "7"]
[White "Gabrinsky"]
[Black "Haridaskesavan"]
[Result "1-0"]
[WhiteElo "2144"]
[BlackElo "1998"]
[TimeControl "180+2"]
[EndTime "12:22:05 PDT"]
[Termination "Gabrinsky won by resignation"]

1. e4 {[%clk 0:03:01.9]} 1... e5 {[%clk 0:03:01]} 2. Nf3 {[%clk 0:03:01.8]} 2...
Nc6 {[%clk 0:03:02.1]} 3. d4 {[%clk 0:03:03]} 3... exd4 {[%clk 0:03:02.8]} 4.
Bc4 {[%clk 0:03:03.9]} 4... Nf6 {[%clk 0:03:03.7]} 5. e5 {[%clk 0:03:05.3]} 5...
d5 {[%clk 0:03:04]} 6. Bb5 {[%clk 0:03:06.5]} 6... Nd7 {[%clk 0:03:05.1]} 7.
Bxc6 {[%clk 0:03:04]} 7... bxc6 {[%clk 0:03:05.8]} 8. Nxd4 {[%clk 0:03:05.7]}
8... Nb8 {[%clk 0:03:06.9]} 9. O-O {[%clk 0:03:02.5]} 9... Be7 {[%clk
0:03:07.8]} 10. Be3 {[%clk 0:03:00.7]} 10... O-O {[%clk 0:03:07.4]} 11. Nb3
{[%clk 0:03:01.3]} 11... Nd7 {[%clk 0:02:57.9]} 12. f4 {[%clk 0:03:00.7]} 12...
f6 {[%clk 0:02:57.7]} 13. e6 {[%clk 0:02:59.8]} 13... Nb6 {[%clk 0:02:56.9]} 14.
f5 {[%clk 0:03:00.5]} 14... Nc4 {[%clk 0:02:57.9]} 15. Bc1 {[%clk 0:02:58.9]}
15... Ba6 {[%clk 0:02:50.5]} 16. Rf3 {[%clk 0:02:53.5]} 16... Ne5 {[%clk
0:02:49.4]} 17. Rg3 {[%clk 0:02:53.7]} 17... Kh8 {[%clk 0:02:48.3]} 18. Nc3
{[%clk 0:02:50.6]} 18... Qe8 {[%clk 0:02:29.4]} 19. Na4 {[%clk 0:02:45.6]} 19...
g6 {[%clk 0:02:27.8]} 20. Nac5 {[%clk 0:02:43.7]} 20... Bc8 {[%clk 0:02:25.2]}
21. fxg6 {[%clk 0:02:41.4]} 21... Nxg6 {[%clk 0:02:24.2]} 22. Bh6 {[%clk
0:02:37.4]} 22... Rg8 {[%clk 0:02:24.6]} 23. Qg4 {[%clk 0:02:29.5]} 23... Bf8
{[%clk 0:02:24.6]} 24. Bxf8 {[%clk 0:02:26]} 24... Qxf8 {[%clk 0:02:23.6]} 25.
Rf1 {[%clk 0:02:22.3]} 25... a5 {[%clk 0:02:18.4]} 26. a4 {[%clk 0:02:21.8]}
26... Rb8 {[%clk 0:02:18.7]} 27. Qf5 {[%clk 0:02:19.8]} 27... Rb4 {[%clk
0:02:04.7]} 28. Qxf6+ {[%clk 0:02:17.2]} 28... Qxf6 {[%clk 0:02:04.8]} 29. Rxf6
{[%clk 0:02:19.1]} 29... Rf4 {[%clk 0:01:57]} 30. Rgxg6 {[%clk 0:02:12.7]} 30...
Rxf6 {[%clk 0:01:49.2]} 31. Rxf6 {[%clk 0:02:12.7]} 1-0